fUST/lending_fUST_20240206
["ID","MTS","AMOUNT","RATE_DAILY","PERIOD"]
[313348641,1707203439123,-3346.58324694,0.00024994,2]
[313348642,1707203439132,-161.19857963,0.00024996,2]
[313348643,1707203439141,-591.21263005,0.00024996,2]
[313348644,1707203439150,-155.76134107,0.00024996,2]
[313348645,1707203439160,-155.03255684,0.00024996,2]
[313348646,1707203439169,-175.42240404,0.00024996,2]
[313348647,1707203439178,-2836.15667761,0.00024996,2]
[313348648,1707203439187,-155.93929282,0.00024996,2]
[313348649,1707203439196,-2354.36523398,0.00024996,2]
[313348650,1707203439206,-523.0723444,0.00024996,2]
[313348651,1707203439215,-233.99326596,0.00024996,2]
[313348652,1707203439224,-247.36203044,0.00024996,2]
[313348653,1707203439233,-155.97044837,0.00024996,2]
[313348654,1707203439242,-262.99863928,0.00024996,2]
[313348655,1707203439251,-4922.76507922,0.00024996,2]
[313348656,1707203439260,-33836.23702035,0.00024996,2]
[313348657,1707203439269,-903.88612378,0.00024996,2]
[313348658,1707203439278,-678.69563899,0.00024996,2]
[313348659,1707203439287,-9656.85680426,0.00024996,2]
[313348660,1707203439296,-927.79962921,0.00024996,2]
[313348661,1707203439305,-1267.12305076,0.00024996,2]
[313348662,1707203439314,-1261.83126137,0.00024996,2]
[313348663,1707203439323,-426.52191671,0.00024996,2]
[313348664,1707203439332,-556.52643287,0.00024996,2]
[313348665,1707203439342,-2914.2729053,0.00024996,2]
[313348666,1707203439351,-175.52348304,0.00024996,2]
[313348667,1707203439359,-9295.80850304,0.00024996,2]
[313348668,1707203439370,-155.8530471,0.00024996,2]
[313348669,1707203439379,-226.35673126,0.00024996,2]
[313348670,1707203439388,-612.46577875,0.00024996,2]
[313348671,1707203439397,-5499.91005355,0.00024996,2]
[313348672,1707203439493,-855.79827835,0.00024996,2]
[313348673,1707203439503,-3975.13505251,0.00024996,2]
[313348674,1707203439513,-645.059676,0.00024997,2]
[313348675,1707203439523,-155.76626702,0.00024997,2]
[313348676,1707203439532,-156.11774704,0.00024997,2]
[313348677,1707203439541,-1207.2278013,0.00024997,2]
[313348678,1707203439551,-155.42538252,0.00024998,2]
[313348679,1707203439562,-181.4071721,0.00024998,2]
[313348680,1707203439573,-2832.84180838,0.00024998,2]
[313348681,1707203439584,-20917.8332955,0.00024998,2]
[313348682,1707203439593,-3753.61482354,0.00024998,2]
[313348683,1707203439602,-1226.47060388,0.00024998,2]
[313348684,1707203439611,-310.0,0.00024998,2]
[313348685,1707203439620,-329.41624618,0.00024998,2]
[313348686,1707203439630,-1835.59980629,0.00025,2]
[313348687,1707203439639,-1652.29644166,0.00025,2]
[313348688,1707203439648,-90839.56459359,0.00025,7]
[313348689,1707203439658,-226.22896012,0.00025,2]
[313348690,1707203439667,-743.43786831,0.00025,2]
[313348691,1707203439677,-628.73994337,0.00025,2]
[313348692,1707203439686,-7404.37733039,0.00025,2]
[313348693,1707203439696,-4737.09564271,0.00025,2]
[313348694,1707203439705,-155.02480397,0.00025,2]
[313348695,1707203439714,-535.03190243,0.00025,2]
[313348696,1707203439723,-155.56425323,0.00025,2]
[313348697,1707203439731,-156.17858956,0.00025,2]
[313348698,1707203439740,-152.43270607,0.00025157,2]
[313348699,1707203439750,-344.00484331,0.0002516,2]
[313348700,1707203439759,-279.8346279,0.0002516,2]
[313348701,1707203439767,-426.94629562,0.000254,2]
[313348702,1707203439777,-430.37918496,0.00025479,2]
[313348703,1707203439786,-2056.83514817,0.00025498,2]
[313348704,1707203439795,-15825.90172154,0.000255,3]
[313348705,1707203439804,-765.83829115,0.000255,2]
[313348706,1707203439813,-155.0294556,0.000255,2]
[313348707,1707203439822,-538.26255608,0.00026,2]
[313348708,1707203439831,-241.96903765,0.00026,2]
[313348709,1707203439840,-578.0,0.000263,2]
[313348710,1707203439849,-151.0,0.00026527,2]
[313348711,1707203439858,-620.00091345,0.00026724,2]
[313348712,1707203439867,-1507.90321757,0.00027,2]
[313348713,1707203439876,-18403.92925259,0.00027,2]
[313348714,1707203439885,-426.94629556,0.000271,2]
[313348715,1707203439894,-151.02114296,0.00027134,7]
[313348716,1707203439903,-5000.0,0.00027227,2]
[313348717,1707203439911,-224.25163115,0.00027229,2]
[313348718,1707203439920,-500.0,0.00027229,2]
[313348719,1707203439929,-500.0,0.00027229,2]
[313348720,1707203439938,-601.70305534,0.00027229,2]
[313348721,1707203439948,-276.85869739,0.00027229,2]
[313348722,1707203439958,-346.54456281,0.00027229,2]
[313348723,1707203439967,-320.45614096,0.00027229,2]
[313348724,1707203439976,-500.0,0.00027229,2]
[313348725,1707203439985,-411.94580637,0.00027229,2]
[313348726,1707203439994,-500.0,0.00027229,2]
[313348727,1707203440003,-500.0,0.00027229,2]
[313348728,1707203440013,-156.9761418,0.00027229,2]
[313348729,1707203440022,-5000.0,0.0002723,2]
[313348730,1707203440032,-188.32065371,0.00027395,2]
[313348731,1707203440041,-510.45481206,0.00027397,2]
[313348732,1707203440050,-500.0,0.00027397,2]
[313348733,1707203440059,-500.0,0.00027397,2]
[313348734,1707203440068,-649.46948051,0.00027397,2]
[313348735,1707203440078,-513.04933089,0.00027397,2]
[313348736,1707203440087,-332.39489178,0.00027397,2]
[313348737,1707203440097,-500.0,0.00027397,2]
[313348738,1707203440106,-500.0,0.00027397,2]
[313348739,1707203440115,-507.18033526,0.00027397,2]
[313348740,1707203440124,-500.0,0.00027397,2]
[313348741,1707203440134,-500.0,0.00027397,2]
[313348742,1707203440143,-500.0,0.00027397,2]
[313348743,1707203440152,-533.12830243,0.00027397,2]
[313348744,1707203440161,-500.0,0.00027397,2]
[313348745,1707203440170,-629.12649244,0.00027397,2]
[313348746,1707203440179,-500.0,0.00027397,2]
[313348747,1707203440189,-514.5533509,0.00027397,2]
[313348748,1707203440199,-595.17692941,0.00027397,2]
[313348749,1707203440208,-500.0,0.00027397,2]
[313348750,1707203440217,-645.97359693,0.00027397,2]
[313348751,1707203440227,-442.28429366,0.00027397,2]
[313348752,1707203440235,-500.0,0.00027397,2]
[313348753,1707203440244,-516.29674876,0.00027397,2]
[313348754,1707203440253,-500.0,0.00027397,2]
[313348755,1707203440262,-500.0,0.00027397,2]
[313348756,1707203440271,-500.0,0.00027397,2]
[313348757,1707203440280,-500.0,0.00027397,2]
[313348758,1707203440289,-500.0,0.00027397,2]
[313348759,1707203440297,-535.86089996,0.00027397,2]
[313348760,1707203440306,-500.0,0.00027397,2]
[313348761,1707203440315,-472.10994506,0.00027397,2]
[313348762,1707203440324,-500.0,0.00027397,2]
[313348763,1707203440333,-600.0,0.00027397,2]
[313348764,1707203440342,-153.42927058,0.00027397,2]
[313348765,1707203440351,-500.0,0.00027397,2]
[313348766,1707203440360,-500.0,0.00027397,2]
[313348767,1707203440369,-1000.0,0.00027397,2]
[313348768,1707203440378,-500.0,0.00027397,2]
[313348769,1707203440387,-642.78514061,0.00027397,2]
[313348770,1707203440396,-292.05430649,0.00027397,2]
[313348771,1707203440405,-500.0,0.00027397,2]
[313348772,1707203440414,-508.08865334,0.00027397,2]
[313348773,1707203440423,-346.07132887,0.00027397,2]
[313348774,1707203440433,-567.3644095,0.00027397,2]
[313348775,1707203440442,-303.27699398,0.00027397,2]
[313348776,1707203440454,-500.0,0.00027397,2]
[313348777,1707203440467,-613.29062569,0.00027397,2]
[313348779,1707203440480,-508.38177622,0.00027397,2]
[313348780,1707203440495,-513.88991049,0.00027397,2]
[313348781,1707203440508,-520.22559079,0.00027397,2]
[313348782,1707203440518,-158.80620809,0.00027397,2]
[313348783,1707203440528,-505.33996608,0.00027397,2]
[313348785,1707203440540,-509.43465701,0.00027397,2]
[313348787,1707203440552,-500.0,0.00027397,2]
[313348789,1707203440565,-498.57894433,0.00027397,2]
[313348790,1707203440576,-510.80046565,0.00027397,2]
[313348791,1707203440588,-512.33166422,0.00027397,2]
[313348792,1707203440601,-500.0,0.00027397,2]
[313348793,1707203440612,-186.4387963,0.00027397,2]
[313348794,1707203440623,-500.0,0.00027397,2]
[313348795,1707203440635,-508.00800789,0.00027397,2]
[313348797,1707203440645,-500.0,0.00027397,2]
[313348799,1707203440654,-510.68911968,0.00027397,2]
[313348800,1707203440665,-520.30484165,0.00027397,2]
[313348801,1707203440677,-527.33494482,0.00027397,2]
[313348802,1707203440688,-507.63574583,0.00027397,2]
[313348803,1707203440699,-503.07568239,0.00027397,2]
[313348805,1707203440710,-505.75117084,0.00027397,2]
[313348807,1707203440721,-507.67252146,0.00027397,2]
[313348809,1707203440732,-500.0,0.00027397,2]
[313348811,1707203440742,-636.39465925,0.00027397,2]
[313348813,1707203440754,-509.10213847,0.00027397,2]
[313348815,1707203440765,-219.95336839,0.00027397,2]
[313348817,1707203440775,-202.46626505,0.00027397,2]
[313348818,1707203440785,-500.0,0.00027397,2]
[313348819,1707203440795,-510.46259647,0.00027397,2]
[313348820,1707203440808,-500.0,0.00027397,2]
[313348821,1707203440820,-164.36816294,0.00027397,2]
[313348822,1707203440830,-604.81594939,0.00027397,2]
[313348823,1707203440842,-500.0,0.00027397,2]
[313348824,1707203440853,-510.16170115,0.00027397,2]
[313348825,1707203440863,-521.85325077,0.00027397,2]
[313348826,1707203440874,-500.0,0.00027397,2]
[313348827,1707203440885,-543.32517802,0.00027397,2]
[313348828,1707203440897,-437.67243451,0.00027397,2]
[313348829,1707203440908,-210.39980277,0.00027397,2]
[313348830,1707203440920,-500.0,0.00027397,2]
[313348831,1707203440932,-596.15755926,0.00027397,2]
[313348832,1707203440944,-500.0,0.00027397,2]
[313348833,1707203440956,-500.0,0.00027397,2]
[313348834,1707203440967,-500.0,0.00027397,2]
[313348835,1707203440979,-500.0,0.00027397,2]
[313348836,1707203440991,-500.0,0.00027397,2]
[313348837,1707203441003,-531.80594083,0.00027397,2]
[313348838,1707203441013,-500.0,0.00027397,2]
[313348839,1707203441023,-324.75485793,0.00027397,2]
[313348840,1707203441033,-500.0,0.00027397,2]
[313348841,1707203441042,-500.0,0.00027397,2]
[313348842,1707203441052,-501.50006016,0.00027397,2]
[313348843,1707203441063,-500.0,0.00027397,2]
[313348844,1707203441075,-500.0,0.00027397,2]
[313348845,1707203441087,-500.0,0.00027397,2]
[313348846,1707203441097,-155.0,0.00027397,2]
[313348847,1707203441107,-506.71596137,0.00027397,2]
[313348848,1707203441118,-500.0,0.00027397,2]
[313348849,1707203441129,-766.23,0.00027397,2]
[313348850,1707203441139,-500.0,0.00027397,2]
[313348851,1707203441149,-265.66648215,0.00027397,2]
[313348852,1707203441158,-570.84693155,0.00027397,2]
[313348853,1707203441169,-519.07024967,0.00027397,2]
[313348854,1707203441179,-566.90264421,0.00027397,2]
[313348855,1707203441189,-500.0,0.00027397,2]
[313348856,1707203441200,-500.0,0.00027397,2]
[313348857,1707203441210,-530.37324067,0.00027397,2]
[313348858,1707203441221,-500.0,0.00027397,2]
[313348859,1707203441231,-567.36,0.00027397,2]
[313348860,1707203441241,-200.0,0.00027397,2]
[313348861,1707203441250,-500.0,0.00027397,2]
[313348862,1707203441271,-500.0,0.00027397,2]
[313348863,1707203441288,-527.3645716,0.00027397,2]
[313348864,1707203441301,-500.0,0.00027397,2]
[313348865,1707203441318,-500.0,0.00027397,2]
[313348866,1707203441331,-500.0,0.00027397,2]
[313348867,1707203441343,-509.07990009,0.00027397,2]
[313348868,1707203441355,-500.0,0.00027397,2]
[313348869,1707203441367,-500.0,0.00027397,2]
[313348870,1707203441378,-500.0,0.00027397,2]
[313348871,1707203441390,-218.82258163,0.00027397,2]
[313348872,1707203441401,-515.96605906,0.00027397,2]
[313348874,1707203441412,-500.0,0.00027397,2]
[313348876,1707203441424,-500.0,0.00027397,2]
[313348877,1707203441435,-500.0,0.00027397,2]
[313348878,1707203441446,-511.81275224,0.00027397,2]
[313348879,1707203441458,-500.0,0.00027397,2]
[313348881,1707203441469,-628.25373659,0.00027397,2]
[313348882,1707203441481,-482.79212563,0.00027397,2]
[313348883,1707203441493,-521.60600973,0.00027397,2]
[313348884,1707203441505,-500.0,0.00027397,2]
[313348885,1707203441515,-500.0,0.00027397,2]
[313348886,1707203441526,-522.25581362,0.00027397,2]
[313348887,1707203441538,-500.0,0.00027397,2]
[313348888,1707203441549,-524.22690996,0.00027397,2]
[313348889,1707203441559,-500.0,0.00027397,2]
[313348890,1707203441574,-527.37892851,0.00027397,2]
[313348891,1707203441585,-511.30745794,0.00027397,2]
[313348892,1707203441596,-536.35841039,0.00027397,2]
[313348897,1707203441705,-510.47938951,0.00027397,2]
[313348898,1707203441741,-519.94725018,0.00027397,2]
[313348899,1707203441750,-603.83886068,0.00027397,2]
[313348900,1707203441759,-512.57314935,0.00027397,2]
[313348901,1707203441769,-500.0,0.00027397,2]
[313348902,1707203441778,-523.99278035,0.00027397,2]
[313348903,1707203441787,-513.44432041,0.00027397,2]
[313348904,1707203441796,-524.75884185,0.00027397,2]
[313348905,1707203441805,-523.01988854,0.00027397,2]
[313348906,1707203441814,-312.34726351,0.00027397,2]
[313348907,1707203441824,-522.71640001,0.00027397,2]
[313348908,1707203441833,-491.79370827,0.00027397,2]
[313348909,1707203441842,-500.0,0.00027397,2]
[313348910,1707203441851,-500.0,0.00027397,2]
[313348911,1707203441860,-500.0,0.00027397,2]
[313348912,1707203441869,-506.98348533,0.00027397,2]
[313348913,1707203441878,-501.95252688,0.00027397,2]
[313348914,1707203441887,-506.74534657,0.00027397,2]
[313348915,1707203441896,-506.60157641,0.00027397,2]
[313348916,1707203441906,-500.0,0.00027397,2]
[313348917,1707203441915,-515.7108705,0.00027397,2]
[313348918,1707203441924,-514.46811897,0.00027397,2]
[313348919,1707203441933,-500.0,0.00027397,2]
[313348920,1707203441942,-519.56813499,0.00027397,2]
[313348921,1707203441951,-300.0,0.00027397,2]
[313348922,1707203441961,-489.75032194,0.00027397,2]
[313348923,1707203441970,-505.25094163,0.00027397,2]
[313348924,1707203441979,-518.62901736,0.00027397,2]
[313348925,1707203441989,-500.0,0.00027397,2]
[313348926,1707203441999,-151.0,0.00027397,2]
[313348927,1707203442008,-500.0,0.00027397,2]
[313348928,1707203442018,-500.0,0.00027397,2]
[313348929,1707203442027,-500.0,0.00027397,2]
[313348930,1707203442036,-508.91828647,0.00027397,2]
[313348931,1707203442046,-500.0,0.00027397,2]
[313348932,1707203442055,-517.65847693,0.00027397,2]
[313348933,1707203442064,-151.0,0.00027397,2]
[313348934,1707203442074,-573.34134771,0.00027397,2]
[313348935,1707203442083,-500.0,0.00027397,2]
[313348936,1707203442092,-521.41517943,0.00027397,2]
[313348937,1707203442101,-512.99823988,0.00027397,2]
[313348938,1707203442110,-509.79663058,0.00027397,2]
[313348939,1707203442120,-526.09872534,0.00027397,2]
[313348940,1707203442129,-520.34529486,0.00027397,2]
[313348941,1707203442138,-548.83936235,0.00027397,2]
[313348942,1707203442147,-362.77091502,0.00027397,2]
[313348943,1707203442157,-206.16672003,0.00027397,2]
[313348944,1707203442167,-530.68618597,0.00027397,2]
[313348945,1707203442176,-516.41558456,0.00027397,2]
[313348946,1707203442185,-500.0,0.00027397,2]
[313348947,1707203442196,-506.8260496,0.00027397,2]
[313348948,1707203442205,-2697.78,0.00027397,2]
[313348949,1707203442214,-1678.15,0.00027397,2]
[313348950,1707203442223,-238.65271338,0.00027397,2]
[313348951,1707203442233,-525.5472783,0.00027397,2]
[313348952,1707203442242,-520.78152957,0.00027397,2]
[313348953,1707203442252,-500.0,0.00027397,2]
[313348954,1707203442262,-538.62431638,0.00027397,2]
[313348955,1707203442271,-511.96342696,0.00027397,2]
[313348956,1707203442281,-454.53316644,0.00027397,2]
[313348957,1707203442290,-582.14670098,0.00027397,2]
[313348958,1707203442299,-500.0,0.00027397,2]
[313348959,1707203442308,-500.0,0.00027397,2]
[313348960,1707203442317,-500.0,0.00027397,2]
[313348961,1707203442326,-500.0,0.00027397,2]
[313348962,1707203442336,-538.4485375,0.00027397,2]
[313348963,1707203442346,-500.0,0.00027397,2]
[313348964,1707203442355,-513.7880325,0.00027397,2]
[313348965,1707203442364,-500.0,0.00027397,2]
[313348966,1707203442373,-206.19450794,0.00027397,2]
[313348967,1707203442383,-500.0,0.00027397,2]
[313348968,1707203442391,-515.33763156,0.00027397,2]
[313348969,1707203442400,-5331.35,0.00027397,2]
[313348970,1707203442410,-500.0,0.00027397,2]
[313348971,1707203442419,-500.0,0.00027397,2]
[313348972,1707203442428,-513.91085123,0.00027397,2]
[313348973,1707203442437,-199.742756,0.00027397,2]
[313348974,1707203442447,-500.0,0.00027397,2]
[313348975,1707203442456,-526.72217034,0.00027397,2]
[313348976,1707203442465,-154.382796,0.00027397,2]
[313348977,1707203442475,-534.54299388,0.00027397,2]
[313348978,1707203442486,-545.96368006,0.00027397,2]
[313348979,1707203442496,-500.0,0.00027397,2]
[313348980,1707203442505,-500.0,0.00027397,2]
[313348981,1707203442514,-500.0,0.00027397,2]
[313348982,1707203442524,-580.09664048,0.00027397,2]
[313348983,1707203442533,-598.59665452,0.00027397,2]
[313348984,1707203442542,-511.30124175,0.00027397,2]
[313348985,1707203442551,-514.9390815,0.00027397,2]
[313348986,1707203442562,-510.39346485,0.00027397,2]
[313348987,1707203442572,-500.0,0.00027397,2]
[313348988,1707203442581,-518.73761394,0.00027397,2]
[313348989,1707203442590,-509.42839015,0.00027397,2]
[313348990,1707203442599,-524.32227964,0.00027397,2]
[313348991,1707203442608,-635.65724385,0.00027397,2]
[313348992,1707203442617,-539.07513386,0.00027397,2]
[313348993,1707203442626,-529.51693222,0.00027397,2]
[313348994,1707203442636,-518.29541074,0.00027397,2]
[313348995,1707203442645,-735.46,0.00027397,2]
[313348996,1707203442655,-500.0,0.00027397,2]
[313348997,1707203442664,-945.70991771,0.00027397,2]
[313349004,1707203443690,521.0,0.00017716,2]
[313349012,1707203446285,-202.52038534,0.00024985,2]
[313349013,1707203446294,-156.13450457,0.00024985,2]
[313349014,1707203446303,-495.58725788,0.00024985,2]
[313349015,1707203446312,-169.12838015,0.00024985,2]
[313349016,1707203446321,-242.23737206,0.00024986,3]
[313349017,1707203446340,-105.32262794,0.00024986,3]
[313349018,1707203446349,-1586.38008229,0.00027397,2]
[313349019,1707203446358,-500.0,0.00027397,2]
[313349020,1707203446367,-500.0,0.00027397,2]
[313349021,1707203446376,-1000.0,0.00027397,2]
[313349022,1707203446386,-511.63570204,0.00027397,2]
[313349023,1707203446395,-500.0,0.00027397,2]
[313349024,1707203446404,-504.88682277,0.00027397,2]
[313349025,1707203446413,-510.7234809,0.00027397,2]
[313349026,1707203446423,-500.0,0.00027397,2]
[313349027,1707203446433,-500.0,0.00027397,2]
[313349028,1707203446445,-196.78708685,0.00027397,2]
[313349029,1707203446459,-542.91388129,0.00027397,2]
[313349030,1707203446470,-512.79233177,0.00027397,2]
[313349031,1707203446480,-500.0,0.00027397,2]
[313349032,1707203446492,-500.0,0.00027397,2]
[313349033,1707203446501,-500.0,0.00027397,2]
[313349034,1707203446510,-500.0,0.00027397,2]
[313349035,1707203446520,-512.45734219,0.00027397,2]
[313349036,1707203446531,-539.69228781,0.00027397,2]
[313349037,1707203446541,-380.37584663,0.00027397,2]
[313349038,1707203446551,-500.0,0.00027397,2]
[313349039,1707203446561,-1227.20460752,0.00027397,2]
[313349040,1707203459708,521.0,0.00017716,2]
[313349041,1707203477702,521.0,0.00017716,2]
[313349044,1707203504861,521.0,0.00017716,2]
[313349045,1707203526871,521.0,0.00017716,2]
[313349046,1707203542867,521.0,0.00017716,2]
[313349050,1707203558861,521.0,0.00017716,2]
[313349051,1707203578878,521.0,0.00017716,2]
[313349053,1707203601089,521.0,0.00017716,2]
[313349054,1707203624082,521.0,0.00017716,2]
[313349055,1707203642078,269.0,0.00017716,2]
[313349056,1707203680332,151.02114296,0.00027677,30]
[313349057,1707203680909,151.02114296,0.00027123,120]
[313349059,1707203796776,185.679802,0.00027397,120]
[313349064,1707204195497,151.02416387,0.00027957,30]
[313349065,1707204195557,151.02416387,0.00027398,120]
[313349069,1707204550921,151.03171666,0.0002826,30]
[313349070,1707204550985,151.03171666,0.00027695,120]
[313349127,1707204638557,-214.01183996,0.00019896,2]
[313349128,1707204638569,-820.60094681,0.00019897,2]
[313349129,1707204638582,-155.03255684,0.00019897,2]
[313349130,1707204638593,-19131.5470773,0.00019897,2]
[313349131,1707204638606,-20464.5895253,0.00019898,2]
[313349132,1707204638619,-155.03255684,0.00020844,2]
[313349133,1707204638631,-155.44871855,0.00020863,2]
[313349134,1707204638641,-185.87055024,0.00020899,2]
[313349135,1707204638651,-158.6338715,0.000209,2]
[313349136,1707204638662,-1830.32102826,0.00021,2]
[313349137,1707204638673,-169.59484,0.00021026,2]
[313349138,1707204638687,-3199.36540465,0.00023,2]
[313349139,1707204638700,-200.0,0.00023057,7]
[313349140,1707204638711,-3407.73944936,0.0002377,2]
[313349141,1707204638722,-36199.99277967,0.0002377,2]
[313349142,1707204638735,-7145.96191078,0.00023775,2]
[313349143,1707204638747,-2766.4896733,0.00023781,2]
[313349144,1707204638759,-155.44871851,0.000245,2]
[313349145,1707204638769,-211.15844939,0.00025,2]
[313349146,1707204638781,-4737.09564271,0.00025,2]
[313349147,1707204638792,-7404.37733039,0.00025,2]
[313349148,1707204638804,-535.03190243,0.00025,2]
[313349149,1707204638815,-167.62697216,0.00025162,2]
[313349150,1707204638827,-473.36442898,0.00025162,2]
[313349151,1707204638840,-163.81183015,0.00025162,2]
[313349152,1707204638852,-280.0,0.00025363,7]
[313349153,1707204638864,-283.71812126,0.0002539,2]
[313349154,1707204638876,-297.1171087,0.00026027,2]
[313349155,1707204638890,-8673.81002401,0.0002631,4]
[313349156,1707204638902,-155.02170304,0.000271,3]
[313349157,1707204638914,-500.0,0.00027144,2]
[313349158,1707204638925,-159.80991403,0.00027144,2]
[313349159,1707204638936,-194.97115027,0.00027144,2]
[313349160,1707204638947,-300.87286758,0.00027144,2]
[313349161,1707204638957,-12719.4795549,0.00027145,2]
[313349162,1707204638976,-2504.0,0.00027145,2]
[313349178,1707204644659,-159.24016867,0.00019895,2]
[313349179,1707204644670,-3476.70576514,0.00027145,2]
[313349180,1707204644683,-7306.7909938,0.00027145,2]
[313349185,1707204646462,-282.82346354,0.00027145,2]
[313349187,1707204646517,-729.81146932,0.00027145,2]
[313349188,1707204646531,-22980.3887533,0.00027145,2]
[313349189,1707204646541,-5000.0,0.00027257,2]
[313349190,1707204646552,-158.6338715,0.00027295,2]
[313349191,1707204646562,-289.64,0.00027387,3]
[313349192,1707204646572,-1755.30358782,0.00027395,2]
[313349193,1707204646583,-245.16306405,0.00027395,2]
[313349194,1707204646593,-1487.20933595,0.00027395,2]
[313349195,1707204646603,-208.7504654,0.00027395,2]
[313349196,1707204646732,-1718.76907116,0.00027395,2]
[313349197,1707204646745,-640.43364993,0.00027395,2]
[313349198,1707204646755,-246.07279347,0.00027395,2]
[313349199,1707204646764,-264.15971439,0.00027395,2]
[313349200,1707204646773,-1532.70135913,0.00027395,2]
[313349201,1707204646783,-182.99451448,0.00027395,2]
[313349202,1707204646793,-297.11870548,0.00027395,2]
[313349203,1707204646802,-214.7726664,0.00027395,2]
[313349204,1707204646811,-288.66168315,0.00027396,2]
[313349205,1707204646820,-1853.65017703,0.00027396,2]
[313349206,1707204646830,-505.32520986,0.00027397,2]
[313349207,1707204646842,-500.0,0.00027397,2]
[313349208,1707204646852,-500.0,0.00027397,2]
[313349209,1707204646862,-500.0,0.00027397,2]
[313349210,1707204646871,-515.83739381,0.00027397,2]
[313349211,1707204646881,-500.0,0.00027397,2]
[313349212,1707204646890,-500.0,0.00027397,2]
[313349213,1707204646899,-307.91180448,0.00027397,2]
[313349214,1707204646908,-500.0,0.00027397,2]
[313349215,1707204646918,-500.0,0.00027397,2]
[313349216,1707204646927,-500.0,0.00027397,2]
[313349217,1707204646936,-500.0,0.00027397,2]
[313349218,1707204646945,-1000.0,0.00027397,2]
[313349219,1707204646954,-501.11147461,0.00027397,2]
[313349220,1707204646963,-500.0,0.00027397,2]
[313349221,1707204646972,-500.0,0.00027397,2]
[313349222,1707204646981,-500.0,0.00027397,2]
[313349223,1707204646990,-500.0,0.00027397,2]
[313349224,1707204646999,-500.0,0.00027397,2]
[313349225,1707204647009,-300.0,0.00027397,2]
[313349226,1707204647019,-500.0,0.00027397,2]
[313349227,1707204647029,-500.0,0.00027397,2]
[313349228,1707204647037,-571.06945272,0.00027397,2]
[313349229,1707204647046,-525.97685195,0.00027397,2]
[313349230,1707204647055,-912.19,0.00027397,2]
[313349231,1707204647065,-912.19,0.00027397,2]
[313349232,1707204647073,-912.19,0.00027397,2]
[313349233,1707204647083,-912.19,0.00027397,2]
[313349234,1707204647092,-912.19,0.00027397,2]
[313349235,1707204647101,-912.19,0.00027397,2]
[313349236,1707204647109,-912.19,0.00027397,2]
[313349237,1707204647118,-912.19,0.00027397,2]
[313349238,1707204647128,-912.19,0.00027397,2]
[313349239,1707204647137,-912.19,0.00027397,2]
[313349240,1707204647146,-912.19,0.00027397,2]
[313349241,1707204647155,-912.19,0.00027397,2]
[313349242,1707204647164,-912.19,0.00027397,2]
[313349243,1707204647173,-912.19,0.00027397,2]
[313349244,1707204647182,-532.52587869,0.00027397,2]
[313349245,1707204647191,-576.97,0.00027397,2]
[313349246,1707204647200,-529.77046194,0.00027397,2]
[313349247,1707204647210,-956.48,0.00027397,2]
[313349248,1707204647219,-617.43577804,0.00027397,2]
[313349249,1707204647228,-513.11379179,0.00027397,2]
[313349250,1707204647237,-500.0,0.00027397,2]
[313349251,1707204647247,-521.86537671,0.00027397,2]
[313349252,1707204647257,-624.64827796,0.00027397,2]
[313349253,1707204647266,-155.0,0.00027397,2]
[313349254,1707204647276,-484.86349625,0.00027397,2]
[313349255,1707204647286,-526.93846528,0.00027397,2]
[313349256,1707204647296,-500.0,0.00027397,2]
[313349257,1707204647306,-515.90535827,0.00027397,2]
[313349258,1707204647315,-545.76998964,0.00027397,2]
[313349259,1707204647325,-500.0,0.00027397,2]
[313349260,1707204647335,-309.69722562,0.00027397,2]
[313349261,1707204647344,-514.06127409,0.00027397,2]
[313349262,1707204647353,-500.0,0.00027397,2]
[313349263,1707204647362,-500.0,0.00027397,2]